bitfinex/quotes_BTCUSD_20210402
["timestamp","ask_amount","ask_price","bid_price","bid_amount"]
[1617367214754,0.00809804,59465.0,59463.0,0.38537]
[1617367215357,0.00296564,59464.0,59463.0,0.3188]
[1617367215553,0.00296564,59464.0,59463.0,0.25006]
[1617367215755,0.00496564,59464.0,59463.0,0.25006]
[1617367215953,0.002,59464.0,59463.0,0.25006]
[1617367216359,0.02177153,59464.0,59463.0,0.25006]
[1617367216556,0.02177153,59464.0,59463.0,0.12614]
[1617367216961,0.002,59464.0,59463.0,3.78031816]
[1617367217159,0.0238923,59465.0,59464.0,4.214719]
[1617367217357,0.0238923,59465.0,59464.0,4.314719]
[1617367217560,0.00609801,59465.0,59464.0,0.644719]
[1617367217956,0.00609801,59465.0,59464.0,0.79323816]
[1617367218161,0.01273558,59469.0,59466.0,0.387719]
[1617367218361,0.01473558,59469.0,59466.0,0.126125]
[1617367219376,0.01473558,59469.0,59467.0,0.252249]
[1617367219575,0.01473558,59469.0,59467.0,0.302249]
[1617367219779,0.01473558,59469.0,59466.0,0.126125]
[1617367219979,0.002,59469.0,59466.0,0.126125]
[1617367221995,0.002,59469.0,59467.0,0.14851916]
[1617367222597,0.002,59469.0,59466.0,0.350475]
[1617367223397,0.002,59469.0,59466.0,0.198485]
[1617367223599,0.002,59469.0,59466.0,0.126125]
[1617367224618,0.51285404,59468.0,59466.0,0.126125]
[1617367225070,0.10345979,59467.0,59466.0,0.126125]
[1617367225271,0.10545979,59467.0,59466.0,0.126125]
[1617367226072,0.10545979,59467.0,59466.0,3.51689216]
[1617367226278,0.002,59467.0,59466.0,1.025133]
[1617367226468,0.002,59467.0,59466.0,1.652852]
[1617367226669,0.002,59467.0,59466.0,3.12137116]
[1617367226868,0.51285404,59468.0,59466.0,1.80137116]
[1617367227070,0.51285404,59468.0,59467.0,3.527719]
[1617367227269,0.50785404,59468.0,59467.0,2.707719]
[1617367227470,0.50785404,59468.0,59467.0,0.387719]
[1617367227971,0.50785404,59468.0,59467.0,0.53623816]
[1617367228172,0.50785404,59468.0,59466.0,1.038293]
[1617367228375,0.50785404,59468.0,59466.0,1.215133]
[1617367228572,0.50785404,59468.0,59466.0,1.118373]
[1617367229572,0.50785404,59468.0,59466.0,0.878373]
[1617367229774,0.50785404,59468.0,59466.0,1.027403]
[1617367230377,0.50785404,59468.0,59467.0,2.627719]
[1617367230578,0.50785404,59468.0,59467.0,3.367719]
[1617367230980,0.50785404,59468.0,59467.0,2.98]
[1617367231781,0.33969104,59468.0,59467.0,2.98]
[1617367231981,0.33969104,59468.0,59467.0,4.94623816]
[1617367231982,0.17152804,59468.0,59467.0,4.94623816]
[1617367232185,0.17152804,59468.0,59467.0,5.15959905]
[1617367232410,0.17152804,59468.0,59467.0,5.88459905]
[1617367232610,0.17209024,59468.0,59467.0,5.88459905]
[1617367233006,0.00395224,59468.0,59467.0,5.88459905]
[1617367233410,0.0004,59478.0,59472.0,0.252209]
[1617367233615,0.0024,59478.0,59477.0,4.28066222]
[1617367233809,0.0024,59478.0,59477.0,0.99838122]
[1617367234009,0.0024,59478.0,59477.0,1.38690038]
[1617367234211,0.0004,59478.0,59477.0,1.38690038]
[1617367234611,0.10411498,59478.0,59477.0,1.38690038]
[1617367235224,0.10411498,59478.0,59477.0,1.14690038]
[1617367235625,0.10411498,59478.0,59477.0,0.27784725]
[1617367236821,0.10411498,59478.0,59476.0,0.164]
[1617367237222,0.10371606,59477.0,59476.0,0.164]
[1617367237867,0.10371606,59477.0,59476.0,0.1]
[1617367238868,0.10371606,59477.0,59475.0,0.226105]
[1617367239269,0.10371606,59477.0,59475.0,0.126105]
[1617367240321,0.10411612,59478.0,59475.0,0.126105]
[1617367240504,0.10374584,59477.0,59475.0,0.126105]
[1617367242107,0.14329921,59477.0,59475.0,0.126105]
[1617367242310,0.03955323,59476.0,59475.0,0.126105]
[1617367242909,0.31882007,59476.0,59475.0,0.126105]
[1617367243109,0.38294564,59476.0,59475.0,0.126105]
[1617367243307,0.1036788,59476.0,59475.0,0.12646745]
[1617367243708,0.00049792,59476.0,59475.0,0.12730812]
[1617367244106,0.10416917,59476.0,59475.0,0.12730812]
[1617367244708,0.10416917,59476.0,59475.0,1.52494112]
[1617367244908,0.10416917,59476.0,59475.0,0.51494112]
[1617367245107,0.10416917,59476.0,59475.0,0.90346028]
[1617367245528,0.10416917,59476.0,59475.0,0.75494112]
[1617367245930,0.10416917,59476.0,59475.0,0.36730812]
[1617367246126,0.10416917,59476.0,59475.0,1.36494112]
[1617367246328,0.10416917,59476.0,59475.0,0.12730812]
[1617367246528,0.09916917,59476.0,59475.0,0.12730812]
[1617367247132,0.10547228,59477.0,59475.0,0.12730812]
[1617367247330,0.14314503,59476.0,59475.0,0.12730812]
[1617367247530,0.10299111,59477.0,59475.0,0.12730812]
[1617367248555,0.0004,59478.0,59476.0,1.347633]
[1617367248756,0.0004,59478.0,59476.0,0.387633]
[1617367248954,0.0004,59478.0,59477.0,0.14851916]
[1617367249155,0.0004,59478.0,59477.0,0.92212216]
[1617367249356,0.0004,59478.0,59477.0,0.773603]
[1617367249755,0.10338614,59478.0,59477.0,0.773603]
[1617367249952,0.10338614,59478.0,59477.0,0.38597]
[1617367250159,0.10338614,59478.0,59477.0,0.773603]
[1617367250354,0.10338614,59478.0,59477.0,0.38597]
[1617367251575,0.36429093,59478.0,59477.0,0.38597]
[1617367252572,0.10338614,59478.0,59477.0,0.38597]
[1617367254434,0.10338614,59478.0,59477.0,0.00084065]
[1617367254832,0.10382289,59478.0,59477.0,0.00084065]
[1617367255241,0.33382289,59478.0,59477.0,0.00084065]
[1617367256243,0.53382289,59478.0,59477.0,0.00084065]
[1617367256444,0.33382289,59478.0,59477.0,0.00084065]
[1617367257246,0.56382289,59478.0,59477.0,0.00084065]
[1617367257647,0.55882289,59478.0,59477.0,0.00084065]
[1617367260265,0.55882289,59478.0,59477.0,2.05847365]
[1617367260463,0.55882289,59478.0,59477.0,0.83663365]
[1617367260662,0.55882289,59478.0,59477.0,0.44900065]
[1617367260863,0.55882289,59478.0,59477.0,0.83663365]
[1617367261064,0.55882289,59478.0,59477.0,0.44900065]
[1617367261487,0.55882289,59478.0,59477.0,0.00084065]
[1617367261688,0.69882289,59478.0,59477.0,0.00084065]
[1617367262097,1.08645589,59478.0,59477.0,0.00084065]
[1617367266525,1.08376787,59478.0,59477.0,0.00084065]
[1617367268735,0.63105589,59478.0,59477.0,0.00084065]
[1617367269161,0.24342289,59478.0,59477.0,0.00084065]
[1617367269360,0.10342289,59478.0,59477.0,4.192503]
[1617367269560,0.10342289,59478.0,59477.0,4.432503]
[1617367270593,0.10342289,59478.0,59477.0,4.832503]
[1617367276011,0.10342289,59478.0,59477.0,1.272503]
[1617367276411,0.10342289,59478.0,59477.0,0.88487]
[1617367276611,0.10342289,59478.0,59477.0,0.47487]
[1617367276812,0.10342289,59478.0,59476.0,0.492196]
[1617367277035,0.00043675,59478.0,59477.0,2.997633]
[1617367277237,0.00043675,59478.0,59477.0,3.906933]
[1617367277439,0.00043675,59478.0,59477.0,4.29201608]
[1617367277637,0.00043675,59478.0,59477.0,4.250273]
[1617367277839,0.10326967,59478.0,59477.0,4.39535608]
[1617367278238,0.00043675,59478.0,59477.0,4.250273]
[1617367278436,0.10327032,59478.0,59477.0,4.250273]
[1617367278640,0.10327032,59478.0,59477.0,3.86264]
[1617367278836,0.10327032,59478.0,59477.0,1.25264]
[1617367279037,0.10327032,59478.0,59477.0,1.64264]
[1617367279659,0.10327032,59478.0,59477.0,2.030273]
[1617367279858,0.10327032,59478.0,59477.0,2.020273]
[1617367280459,0.10327032,59478.0,59477.0,1.63264]
[1617367280659,0.10327032,59478.0,59477.0,2.020273]
[1617367281060,0.10327032,59478.0,59477.0,2.365273]
[1617367281265,0.10327032,59478.0,59477.0,1.215273]
[1617367281461,0.10327032,59478.0,59477.0,0.3893]
[1617367282064,0.10327032,59478.0,59477.0,1.8193]
[1617367282281,0.10327032,59478.0,59477.0,0.3893]
[1617367282482,0.10327032,59478.0,59476.0,0.559176]
[1617367282684,0.10327032,59478.0,59476.0,0.319176]
[1617367282885,0.10282498,59477.0,59475.0,0.126105]
[1617367283887,0.15282498,59477.0,59475.0,0.126105]
[1617367284083,0.10283012,59476.0,59475.0,0.126105]
[1617367284486,0.10281184,59477.0,59475.0,0.126105]
[1617367284684,0.10281115,59476.0,59475.0,0.126105]
[1617367285132,0.09781133,59477.0,59475.0,0.126105]
[1617367285336,0.10273597,59476.0,59475.0,0.126105]
[1617367285541,0.48131347,59476.0,59464.0,0.00303724]
[1617367285747,0.24773701,59475.0,59463.0,0.004]
[1617367285936,0.10273655,59474.0,59463.0,0.004]
[1617367286134,0.002,59472.0,59463.0,0.004]
[1617367286335,0.19685465,59473.0,59463.0,0.004]
[1617367286538,0.252261,59471.0,59467.0,0.126131]
[1617367287133,0.25288613,59471.0,59467.0,0.126131]
[1617367287739,0.25288613,59471.0,59467.0,0.17627446]
[1617367287939,0.25288613,59471.0,59467.0,0.126131]
[1617367289141,0.25288613,59471.0,59467.0,0.252262]
[1617367289543,0.25288613,59471.0,59468.0,0.19508308]
[1617367289743,0.00062513,59471.0,59468.0,0.1]
[1617367289942,0.00062513,59471.0,59467.0,0.252262]
[1617367290364,0.00062513,59471.0,59468.0,0.14409462]
[1617367290764,0.00062513,59471.0,59469.0,0.437633]
[1617367291165,0.00062513,59471.0,59470.0,3.8040955]
[1617367291364,0.00062513,59471.0,59470.0,4.4317285]
[1617367291766,0.50283087,59478.0,59472.0,0.343239]
[1617367291965,0.50283087,59478.0,59474.0,0.387602]
[1617367292374,0.50283087,59478.0,59475.0,0.1440955]
[1617367292984,0.50283087,59478.0,59476.0,0.387633]
[1617367293183,0.50283087,59478.0,59475.0,0.1440955]
[1617367293385,0.55814607,59478.0,59474.0,0.33106]
[1617367293980,0.55814607,59478.0,59475.0,0.1440955]
[1617367294182,0.55814607,59478.0,59473.0,0.252228]
[1617367296410,0.81038107,59478.0,59473.0,0.252228]
[1617367297311,0.80538107,59478.0,59473.0,0.252228]
[1617367298141,0.387638,59477.0,59473.0,0.252228]
[1617367298347,0.427249,59476.0,59473.0,0.252228]
[1617367298539,0.387638,59475.0,59473.0,0.252228]
[1617367299939,0.63347316,59475.0,59473.0,0.252228]
[1617367300170,0.24,59474.0,59473.0,0.252228]
[1617367300365,0.627638,59474.0,59473.0,0.252228]
[1617367303014,0.627638,59474.0,59473.0,0.126114]
[1617367303217,0.627638,59474.0,59469.0,0.126134]
[1617367303415,0.252269,59472.0,59469.0,0.126134]
[1617367303817,0.387638,59471.0,59469.0,0.126134]
[1617367304623,0.387638,59471.0,59464.0,0.1440955]
[1617367304820,0.2912,59473.0,59463.0,0.16]
[1617367305015,0.0012,59473.0,59463.0,0.16]
[1617367305418,0.0012,59473.0,59463.0,0.3040955]
[1617367306215,0.0012,59473.0,59463.0,0.16]
[1617367306817,0.16,59472.0,59463.0,0.16]
[1617367307420,0.0012,59473.0,59463.0,0.16]
[1617367308226,0.11059142,59473.0,59463.0,0.16]
[1617367308428,0.05939222,59472.0,59463.0,0.16]
[1617367308652,0.32796152,59471.0,59460.0,1.1635]
[1617367308850,0.002,59470.0,59460.0,1.1635]
[1617367309049,0.29789666,59470.0,59460.0,1.1635]
[1617367309249,0.135,59469.0,59460.0,1.1635]
[1617367309449,0.10104164,59468.0,59460.0,1.1635]
[1617367309847,0.10104273,59467.0,59460.0,1.1635]
[1617367310251,0.10099832,59468.0,59460.0,1.1635]
[1617367310452,0.10099764,59466.0,59460.0,0.9965]
[1617367310851,0.10099748,59467.0,59460.0,0.9965]
[1617367311051,0.10099758,59465.0,59460.0,0.9965]
[1617367311273,0.10099733,59466.0,59459.0,0.004]
[1617367311481,0.10099733,59466.0,59456.0,0.005]
[1617367311482,0.0012,59466.0,59456.0,0.005]
[1617367311674,0.0012,59466.0,59457.0,0.5317335]
[1617367312072,0.0012,59466.0,59456.0,0.195]
[1617367312273,0.0012,59466.0,59456.0,0.055]
[1617367312676,0.0012,59466.0,59457.0,0.387638]
[1617367312873,0.0012,59466.0,59458.0,0.0048]
[1617367313075,0.00054734,59472.0,59459.0,0.240835]
[1617367313273,0.002,59468.0,59460.0,0.1440955]
[1617367313478,0.00174734,59472.0,59461.0,0.005]
[1617367313675,0.002,59471.0,59458.0,0.0046]
[1617367314096,0.002,59471.0,59459.0,0.1440955]
[1617367314301,0.10082395,59470.0,59462.0,0.0054]
[1617367314506,0.002,59471.0,59463.0,0.1440955]
[1617367314701,0.00054734,59472.0,59463.0,0.1440955]
[1617367314901,0.00054734,59472.0,59464.0,0.387638]
[1617367315309,0.00054734,59472.0,59465.0,0.1440955]
[1617367315706,0.00054734,59472.0,59464.0,0.387638]
[1617367315907,0.00054734,59472.0,59465.0,0.1440955]
[1617367316106,0.00054734,59472.0,59466.0,0.240754]
[1617367316940,0.00054734,59472.0,59467.0,0.1440955]
[1617367317140,0.00054734,59472.0,59467.0,0.1480955]
[1617367317942,0.00054734,59472.0,59463.0,0.0056]
[1617367318143,0.00054734,59472.0,59466.0,0.004]
[1617367318339,0.00054734,59472.0,59467.0,0.387638]
[1617367318538,0.00054734,59472.0,59467.0,0.5317335]
[1617367318740,0.00054734,59472.0,59467.0,0.387638]
[1617367319345,0.05112591,59472.0,59467.0,0.387638]
[1617367319544,0.05112591,59472.0,59467.0,0.5317335]
[1617367319747,0.00054734,59472.0,59467.0,0.5317335]
[1617367319946,0.00054734,59472.0,59467.0,0.387638]
[1617367320152,0.00054734,59472.0,59461.0,0.14713274]
[1617367320348,0.00054734,59472.0,59462.0,0.867638]
[1617367320554,0.00054734,59472.0,59464.0,0.0056]
[1617367320750,0.00054734,59472.0,59465.0,0.240772]
[1617367320947,0.00054734,59472.0,59466.0,0.1438955]
[1617367321550,0.00054734,59472.0,59464.0,0.0056]
[1617367322370,0.00054734,59472.0,59466.0,0.1438955]
[1617367322574,0.00054734,59472.0,59465.0,0.05]
[1617367324988,0.00054734,59472.0,59466.0,0.1438955]
[1617367325189,0.00054734,59472.0,59465.0,0.05]
[1617367325389,0.00054734,59472.0,59466.0,0.1438955]
[1617367325793,0.00054734,59472.0,59465.0,0.05]
[1617367325992,0.00054734,59472.0,59466.0,0.1438955]
[1617367326190,0.00054734,59472.0,59466.0,0.05]
[1617367326391,0.00054734,59472.0,59466.0,0.1938955]
[1617367326592,0.00054734,59472.0,59466.0,0.05]
[1617367327018,0.00054734,59472.0,59466.0,0.1938955]
[1617367327616,0.00054734,59472.0,59467.0,0.387638]
[1617367328319,0.00054734,59472.0,59466.0,0.05]
[1617367329118,0.00054734,59472.0,59464.0,0.2156]
[1617367329325,0.0004,59481.0,59464.0,0.2156]
[1617367329326,3.9669,59501.0,59500.0,1.21340732]
[1617367329554,4.9659,59501.0,59500.0,1.21340732]
[1617367329754,6.16993128,59501.0,59500.0,1.21340732]
[1617367329952,6.17193128,59501.0,59500.0,1.21340732]
[1617367330243,6.63693128,59501.0,59500.0,0.21420732]
[1617367330354,6.93693128,59501.0,59500.0,0.21420732]
[1617367331154,7.03693128,59501.0,59500.0,0.21420732]
[1617367331552,7.03748738,59501.0,59500.0,0.21420732]
[1617367332187,6.7675941,59501.0,59500.0,0.21420732]
[1617367332991,6.2675941,59501.0,59500.0,0.21420732]
[1617367333388,6.8675941,59501.0,59500.0,0.21420732]
[1617367333991,7.3675941,59501.0,59500.0,0.21420732]
[1617367334190,6.7675941,59501.0,59500.0,0.21420732]
[1617367334390,7.7075941,59501.0,59500.0,0.21420732]
[1617367335597,6.7675941,59501.0,59500.0,0.21420732]
[1617367336396,7.7075941,59501.0,59500.0,0.21420732]
[1617367336597,6.7675941,59501.0,59500.0,0.21420732]
[1617367337202,7.7075941,59501.0,59500.0,0.19920732]
[1617367337422,6.7675941,59501.0,59500.0,0.19920732]
[1617367339422,7.5975941,59501.0,59500.0,0.19920732]
[1617367340051,6.7675941,59501.0,59500.0,0.19920732]
[1617367341457,7.4975941,59501.0,59500.0,0.19920732]
[1617367341657,6.7675941,59501.0,59500.0,0.19920732]
[1617367342865,7.2675941,59501.0,59500.0,0.19920732]
[1617367344568,8.2075941,59501.0,59500.0,0.17420732]
[1617367345448,8.2075941,59501.0,59500.0,0.16920732]
[1617367346246,7.2675941,59501.0,59500.0,0.16920732]
[1617367346647,8.2075941,59501.0,59500.0,0.16660232]
[1617367347650,7.2675941,59501.0,59500.0,0.16660232]
[1617367348272,7.8675941,59501.0,59500.0,0.16660232]
[1617367348471,7.2675941,59501.0,59500.0,0.16660232]
[1617367349273,8.2075941,59501.0,59500.0,0.14660232]
[1617367349476,7.2675941,59501.0,59500.0,0.14660232]
[1617367351095,7.2675941,59501.0,59500.0,0.12160232]
[1617367351495,7.0175941,59501.0,59500.0,0.12160232]
[1617367351697,6.7710941,59501.0,59500.0,0.12160232]
[1617367351898,7.0175941,59501.0,59500.0,0.12160232]
[1617367352499,7.534976,59501.0,59500.0,0.12160232]
[1617367355134,7.734976,59501.0,59500.0,0.12160232]
[1617367355532,6.989476,59501.0,59500.0,0.12160232]
[1617367355730,7.734976,59501.0,59500.0,0.12160232]
[1617367357547,6.989476,59501.0,59500.0,0.12160232]
[1617367357747,7.734976,59501.0,59500.0,0.12160232]
[1617367359174,7.987235,59501.0,59500.0,0.12160232]
[1617367361635,7.241735,59501.0,59500.0,0.11660232]
[1617367361840,7.487235,59501.0,59500.0,0.11660232]
[1617367363040,8.427235,59501.0,59500.0,0.10260232]
[1617367363237,7.487235,59501.0,59500.0,0.10260232]
[1617367364841,7.337235,59501.0,59500.0,0.10260232]
[1617367369474,7.72717874,59501.0,59500.0,0.10260232]
[1617367370275,7.387235,59501.0,59500.0,0.10260232]
[1617367371281,7.487235,59501.0,59500.0,0.10260232]
[1617367371487,8.36437874,59501.0,59500.0,0.10260232]
[1617367371713,0.7455,59487.0,59470.0,0.09]
[1617367371904,0.3323552,59486.0,59470.0,0.09]
[1617367372102,0.0012,59485.0,59470.0,0.09]
[1617367372300,0.0969616,59485.0,59470.0,0.09]
[1617367372504,0.4507615,59481.0,59470.0,0.09]
[1617367372701,0.3323552,59480.0,59470.0,0.09]
[1617367372902,0.43011694,59480.0,59470.0,0.09]
[1617367373103,0.09558159,59479.0,59470.0,0.09]
[1617367373301,0.25229,59475.0,59470.0,0.09]
[1617367373501,0.09558563,59474.0,59470.0,0.09]
[1617367374100,0.08558563,59474.0,59470.0,0.09]
[1617367374332,0.09615819,59473.0,59470.0,0.09]
[1617367374533,0.09562048,59472.0,59470.0,0.09]
[1617367374733,0.252287,59471.0,59469.0,0.044]
[1617367375135,0.252287,59471.0,59469.0,0.04]
[1617367375381,0.09561304,59470.0,59469.0,0.04]
[1617367375991,0.48325104,59470.0,59469.0,0.04]
[1617367376187,0.64325104,59470.0,59469.0,0.04]
[1617367377789,0.64325104,59470.0,59468.0,0.09]
[1617367377984,0.09561174,59469.0,59468.0,0.09]
[1617367378391,0.09561174,59469.0,59468.0,0.642638]
[1617367378583,0.09561174,59469.0,59468.0,0.255]
[1617367379185,0.09561174,59469.0,59468.0,0.09]
[1617367379785,0.09560871,59472.0,59468.0,0.09]
[1617367380989,0.09560871,59472.0,59468.0,0.42079732]
[1617367380990,0.34787771,59472.0,59468.0,0.42079732]
[1617367381187,0.09560871,59472.0,59471.0,1.716]
[1617367381389,0.09560871,59472.0,59471.0,0.246]
[1617367381585,0.09560871,59472.0,59471.0,0.633638]
[1617367382200,0.09560871,59472.0,59471.0,0.241]
[1617367382401,0.00053595,59473.0,59471.0,0.406]
[1617367383401,0.00053595,59473.0,59471.0,0.241]
[1617367385230,0.25280395,59473.0,59471.0,0.241]
[1617367386030,0.00296612,59472.0,59471.0,0.241]
[1617367386831,0.00296612,59472.0,59471.0,0.961]
[1617367387032,0.00296612,59472.0,59471.0,0.628638]
[1617367389057,0.00296612,59472.0,59471.0,0.241]
[1617367389456,0.00296612,59472.0,59471.0,0.085]
[1617367389658,0.00296612,59472.0,59469.0,0.12377863]
[1617367389860,0.00296612,59472.0,59471.0,0.045]
[1617367390086,0.25280095,59473.0,59471.0,0.045]
[1617367392924,0.25280095,59473.0,59470.0,0.045]
[1617367393325,0.0029654,59471.0,59470.0,0.045]
[1617367393724,0.25280095,59473.0,59470.0,0.045]
[1617367393925,0.00296519,59471.0,59470.0,0.045]
[1617367394925,0.00296519,59471.0,59470.0,0.245]
[1617367395125,0.00296519,59471.0,59470.0,0.285]
[1617367395736,0.00296519,59471.0,59467.0,0.298298]
[1617367395939,0.252284,59470.0,59469.0,0.07616443]
[1617367396141,0.252284,59470.0,59469.0,0.12616443]
[1617367396337,0.25524921,59470.0,59469.0,0.16616443]
[1617367396937,0.00296521,59470.0,59469.0,0.70780243]
[1617367397141,0.00350008,59471.0,59469.0,0.70780243]
[1617367397338,0.00053491,59471.0,59470.0,2.085702]
[1617367397536,0.00053491,59471.0,59470.0,0.8178347]
[1617367397738,0.00053491,59471.0,59470.0,0.6278347]
[1617367397959,0.00053491,59471.0,59470.0,0.545702]
[1617367398358,0.00251162,59471.0,59470.0,0.40794844]
[1617367398558,0.00251162,59471.0,59470.0,0.330702]
[1617367398960,0.00053491,59471.0,59470.0,0.330702]
[1617367399361,0.00251162,59471.0,59470.0,0.330702]
[1617367399558,0.00251162,59471.0,59470.0,0.41447105]
[1617367399959,0.00251162,59471.0,59470.0,0.40851461]
[1617367400365,0.00251162,59471.0,59470.0,0.330702]
[1617367400579,0.00251162,59471.0,59470.0,0.17180933]
[1617367400782,0.00053491,59471.0,59470.0,0.17180933]
[1617367401181,0.00251164,59471.0,59470.0,0.55944733]
[1617367401382,0.00251164,59471.0,59470.0,0.75444733]
[1617367401583,0.00053491,59471.0,59470.0,0.75444733]
[1617367401785,0.00053491,59471.0,59470.0,0.70444733]
[1617367402181,0.00053491,59471.0,59470.0,0.31680933]
[1617367402380,0.00053491,59471.0,59470.0,0.12180933]
[1617367402582,0.00053491,59471.0,59468.0,0.04]
[1617367402784,0.00053491,59471.0,59470.0,0.07929705]
[1617367402982,0.00053491,59471.0,59468.0,0.04]
[1617367403214,0.00053491,59471.0,59470.0,0.08079087]
[1617367403411,0.00053491,59471.0,59470.0,0.08189494]
[1617367403607,0.00053491,59471.0,59470.0,0.08209456]
[1617367403812,0.00053491,59471.0,59470.0,0.07933824]
[1617367404009,0.00053491,59471.0,59470.0,0.0775093]
[1617367404210,0.00053491,59471.0,59470.0,0.08098193]
[1617367404413,0.00053491,59471.0,59470.0,0.08468104]
[1617367404612,0.00053491,59471.0,59470.0,0.07662126]
[1617367404812,0.00053491,59471.0,59470.0,0.07591115]
[1617367405014,0.252285,59470.0,59467.0,0.294298]
[1617367405215,0.252285,59470.0,59469.0,0.07526135]
[1617367405461,0.252285,59470.0,59469.0,0.07607548]
[1617367405861,0.252285,59470.0,59467.0,0.294298]
[1617367406063,0.252285,59470.0,59469.0,0.0766072]
[1617367406664,0.2528192,59470.0,59469.0,0.0766072]
[1617367407864,0.33079732,59489.0,59469.0,0.0766072]
[1617367408066,0.0012,59481.0,59470.0,0.0056]
[1617367408264,0.252272,59475.0,59470.0,0.0056]
[1617367408465,0.252272,59475.0,59467.0,0.25602682]
[1617367408866,0.252272,59475.0,59469.0,0.08411769]
[1617367409070,0.084099,59475.0,59473.0,0.126136]
[1617367409665,0.084099,59475.0,59473.0,0.20332879]
[1617367411287,0.084099,59475.0,59474.0,0.387638]
[1617367412885,0.084099,59475.0,59473.0,0.20332879]
[1617367414905,0.252253,59478.0,59473.0,0.20332879]
[1617367415109,0.252253,59478.0,59474.0,0.126127]
[1617367415505,0.252253,59478.0,59474.0,0.096127]
[1617367415703,0.252253,59478.0,59475.0,0.07747571]
[1617367415903,0.252253,59478.0,59474.0,0.096127]
[1617367416103,0.16,59477.0,59474.0,0.096127]
[1617367417835,0.18550277,59476.0,59475.0,0.07967423]
[1617367421710,0.18550277,59476.0,59475.0,0.85267423]
[1617367421909,0.18550277,59476.0,59475.0,0.23267423]
[1617367423307,0.18550277,59476.0,59475.0,0.07967423]
[1617367428341,0.18550277,59476.0,59475.0,0.07999379]
[1617367429358,0.00050277,59476.0,59475.0,0.07999379]
[1617367432009,0.05155239,59476.0,59475.0,0.00116024]
[1617367432197,0.00050277,59476.0,59475.0,0.00116024]
[1617367432799,0.24775677,59479.0,59475.0,0.00116024]
[1617367432997,0.387638,59478.0,59475.0,0.00116024]
[1617367433199,0.82964942,59478.0,59475.0,0.00116024]
[1617367433405,0.387638,59476.0,59475.0,0.00116024]
[1617367433800,0.622638,59476.0,59475.0,0.00116024]
[1617367434808,0.00633976,59475.0,59474.0,0.09644551]
[1617367435007,0.10185317,59475.0,59474.0,0.09644551]
[1617367435406,0.25185317,59475.0,59474.0,0.09644551]
[1617367436045,0.25185317,59475.0,59474.0,0.48408351]
[1617367436257,0.25185317,59475.0,59474.0,1.27408351]
[1617367436647,0.25185317,59475.0,59474.0,0.09644551]
[1617367437850,0.25185317,59475.0,59474.0,1.57408351]
[1617367438052,0.25185317,59475.0,59474.0,0.48408351]
[1617367438450,0.25185317,59475.0,59474.0,0.09644551]
[1617367438649,0.25185317,59475.0,59474.0,0.48408351]
[1617367439650,0.25243742,59475.0,59474.0,0.096127]
[1617367447312,0.25243742,59475.0,59474.0,2.183765]
[1617367447736,0.25243742,59475.0,59474.0,0.483765]
[1617367450993,0.25243742,59475.0,59474.0,0.096127]
[1617367452198,0.24609766,59475.0,59474.0,0.096127]
[1617367459243,0.24609766,59475.0,59474.0,0.483765]
[1617367460248,0.24609766,59475.0,59474.0,0.096127]
[1617367466130,0.24609766,59475.0,59474.0,2.643765]
[1617367466529,0.24609766,59475.0,59474.0,0.483765]
[1617367467339,0.24609766,59475.0,59474.0,1.2663834]
[1617367467928,0.24609766,59475.0,59474.0,0.9375905]
[1617367468133,0.24609766,59475.0,59474.0,0.7265905]
[1617367468941,0.2456497,59475.0,59474.0,2.452695]
[1617367469139,0.2456497,59475.0,59474.0,0.582695]
[1617367469343,0.2456497,59475.0,59474.0,0.7265905]
[1617367470344,0.0956497,59475.0,59474.0,0.582695]
[1617367470744,0.0956497,59475.0,59474.0,0.195057]
[1617367470942,0.0956497,59475.0,59474.0,0.141477]
[1617367471143,0.0956497,59475.0,59474.0,0.091127]
[1617367480151,0.23958419,59477.0,59474.0,0.091127]
[1617367480356,0.15,59476.0,59474.0,0.091127]
[1617367480551,0.15,59476.0,59475.0,0.07929123]
[1617367480552,0.5154537,59476.0,59475.0,0.07929123]
[1617367480809,0.9030917,59476.0,59475.0,0.07929123]
[1617367481011,0.863508,59476.0,59475.0,0.07929123]
[1617367481217,0.863508,59476.0,59475.0,0.24747823]
[1617367483208,0.86402024,59476.0,59475.0,0.24747823]
[1617367483621,0.86402024,59476.0,59456.0,0.378399]
[1617367483622,0.387638,59475.0,59456.0,0.378399]
[1617367483818,0.387638,59475.0,59457.0,0.08420801]
[1617367483819,0.0012,59469.0,59457.0,0.08420801]
[1617367484016,2.99060707,59459.0,59457.0,0.08420801]
[1617367484216,0.731628,59459.0,59457.0,0.08420801]
[1617367484409,0.777638,59458.0,59457.0,0.08420801]
[1617367484615,0.387638,59458.0,59457.0,0.21038501]
[1617367485410,0.387638,59458.0,59457.0,0.126177]
[1617367485618,0.94573932,59458.0,59437.0,0.15]
[1617367485817,0.94573932,59458.0,59449.0,0.08091744]
[1617367486021,0.387638,59454.0,59443.0,0.08302721]
[1617367486213,0.00197966,59445.0,59443.0,0.08302721]
[1617367486418,0.00197966,59445.0,59442.0,0.214003]
[1617367486419,0.38961772,59444.0,59442.0,0.214003]
[1617367486815,0.552638,59443.0,59442.0,0.214003]
[1617367487021,0.5556076,59443.0,59442.0,0.214003]
[1617367487220,0.552638,59443.0,59442.0,0.214003]
[1617367488027,0.165,59443.0,59442.0,0.264003]
[1617367488225,0.165,59443.0,59442.0,0.68296609]
[1617367488423,0.00296963,59443.0,59442.0,0.68296609]
[1617367488623,1.69296963,59443.0,59442.0,0.68296609]
[1617367488829,2.53163522,59443.0,59442.0,0.29532809]
[1617367489018,2.91663522,59443.0,59442.0,0.29532809]
[1617367489421,2.896838,59443.0,59442.0,0.29532809]
[1617367489620,2.896838,59443.0,59442.0,0.214003]
[1617367489851,1.206838,59443.0,59442.0,0.214003]
[1617367490053,1.206838,59443.0,59442.0,0.29009724]
[1617367490649,1.53493932,59443.0,59442.0,0.20229724]
[1617367490851,1.53493932,59443.0,59442.0,0.126203]
[1617367491651,1.53493932,59443.0,59430.0,0.168305]
[1617367491851,0.387638,59439.0,59430.0,0.168305]
[1617367492048,0.388838,59438.0,59437.0,0.07701113]
[1617367492252,0.387638,59438.0,59430.0,0.168305]
[1617367492473,0.388838,59438.0,59430.0,0.168305]
[1617367492673,0.387638,59434.0,59430.0,0.168305]
[1617367492871,0.0012,59438.0,59430.0,0.168305]